{"text_format":"3","workbook":"xlsx","n_sheets":2,"sheets":["เริ่ม","ใบแจ้งหนี้บริการ"],"not_rendered":{"images":1,"defined_names":1},"read":"whole","date_system":"1900"}

{"sheet":"เริ่ม","index":0,"n_rows":8,"n_cols":2,"rows_kept":8}
[null,"เกี่ยวกับเทมเพลตนี้"]
[null,"ใช้เทมเพลตนี้เพื่อสร้างใบแจ้งหนี้บริการ"]
[null,"กรอกหมายเลขใบแจ้งหนี้ วันที่ ชื่อบริษัท ที่อยู่ สโลแกน และรายละเอียดเรียกเก็บเงิน"]
[null,"ใส่ข้อมูลในตาราง"]
[null,"ผลรวมจะถูกคำนวณให้คุณโดยอัตโนมัติ"]
[null,"หมายเหตุ: "]
[null,"คำแนะนำเพิ่มเติมจะอยู่ในคอลัมน์ A ในเวิร์กชีต \"ใบแจ้งหนี้บริการ\" ข้อความนี้ได้ถูกซ่อนไว้โดยตั้งใจ เมื่อต้องการเอาข้อความออก ให้เลือกคอลัมน์ A แล้วเลือก ลบ เมื่อต้องการยกเลิกการซ่อนข้อความ ให้เลือกคอลัมน์ A แล้วเปลี่ยนสีฟอนต์"]
[null,"เมื่อต้องการเรียนรู้เพิ่มเติมเกี่ยวกับตาราง ให้กด SHIFT แล้วตามด้วย F10 ภายในตาราง แล้วเลือกตัวเลือก \"ตาราง\" จากนั้นเลือก \"ข้อความแสดงแทน\""]

{"sheet":"ใบแจ้งหนี้บริการ","index":1,"n_rows":43,"n_cols":5,"rows_kept":43,"merged":[[0,1,0,2],[0,3,0,4],[1,1,1,4],[2,1,2,3],[3,1,3,3],[4,1,4,2],[5,1,5,2],[6,1,6,2],[7,1,7,2],[41,1,41,2],[41,3,41,4],[42,1,42,4]]}
["สร้างใบแจ้งหนี้บริการในเวิร์กชีตนี้ ใส่โลโก้บริษัทในเซลล์ทางด้านขวาและชื่อเรื่องของเวิร์กชีตนี้ในเซลล์ D1 คำแนะนำที่เป็นประโยชน์เกี่ยวกับวิธีใช้เวิร์กชีตนี้อยู่ในเซลล์ในคอลัมน์นี้ คำแนะนำถัดไปอยู่ในเซลล์ A3","พื้นที่ที่สำรองไว้สำหรับโลโก้อยู่ในเซลล์นี้",null,"ใบแจ้งหนี้"]
[]
["ใส่ชื่อบริษัทในเซลล์ด้านขวา","ชื่อบริษัทของคุณ"]
["ใส่สโลแกนบริษัทในเซลล์ด้านขวา","สโลแกนของบริษัทของคุณ"]
["ใส่ที่อยู่บริษัทในเซลล์ทางด้านขวาและหมายเลขใบแจ้งหนี้ในเซลล์ E5","ที่อยู่",null,"เลขที่ใบแจ้งหนี้","หมายเลข"]
["ใส่อำเภอ จังหวัด และรหัสไปรษณีย์ในเซลล์ด้านขวาและวันที่ในเซลล์ E6","เมือง รหัสไปรษณีย์",null,"วันที่ ",{"$f":"TODAY()","v":"2019-04-19"}]
["ใส่หมายเลขโทรศัพท์และแฟกซ์ในเซลล์ทางด้านขวา และ ID ในเซลล์ E7","โทรศัพท์ โทรสาร",null,"ID ลูกค้า ","ID"]
["ใส่ที่อยู่อีเมลในเซลล์ทางด้านขวา","อีเมล"]
["ป้ายกำกับ “ถึง” อยู่ในเซลล์ด้านขวา ใส่รายละเอียด “เรียกเก็บจาก” เช่น ชื่อ ชื่อบริษัท ที่อยู่ และหมายเลขโทรศัพท์ในเซลล์ C9 ถึง C13 คำแนะนำถัดไปอยู่ในเซลล์ A14","ถึง","ชื่อ"]
[null,null,"ชื่อบริษัท"]
[null,null,"ที่อยู่"]
[null,null,"เมือง รหัสไปรษณีย์ "]
[null,null,"โทรศัพท์"]
["ใส่ข้อมูลในตารางรายละเอียดการขายโดยเริ่มจากเซลล์ด้านขวา คำแนะนำถัดไปจะอยู่ในเซลล์ A17","พนักงานขาย","งาน","เงื่อนไขการชำระเงิน","วันครบกำหนด"]
[{"$nulls":3},"ครบกำหนดเมื่อได้รับ"]
[]
["ใส่ข้อมูลในตารางรายละเอียดใบแจ้งหนี้โดยเริ่มจากเซลล์ด้านขวา ผลรวมย่อยและผลรวมจะถูกคำนวณโดยอัตโนมัติ คำแนะนำถัดไปอยู่ในเซลล์ A42","จำนวน","รายละเอียด","ราคาต่อหน่วย","ผลรวมของรายการ"]
[{"$nulls":4},{"$f":"IF(SUM(B18)>0,SUM(B18*ใบแจ้งหนี้บริการ!$D18),\"\")","v":""}]
[{"$nulls":4},{"$f":"IF(SUM(B19)>0,SUM(B19*ใบแจ้งหนี้บริการ!$D19),\"\")","v":""}]
[{"$nulls":4},{"$f":"IF(SUM(B20)>0,SUM(B20*ใบแจ้งหนี้บริการ!$D20),\"\")","v":""}]
[{"$nulls":4},{"$f":"IF(SUM(B21)>0,SUM(B21*ใบแจ้งหนี้บริการ!$D21),\"\")","v":""}]
[{"$nulls":4},{"$f":"IF(SUM(B22)>0,SUM(B22*ใบแจ้งหนี้บริการ!$D22),\"\")","v":""}]
[{"$nulls":4},{"$f":"IF(SUM(B23)>0,SUM(B23*ใบแจ้งหนี้บริการ!$D23),\"\")","v":""}]
[{"$nulls":4},{"$f":"IF(SUM(B24)>0,SUM(B24*ใบแจ้งหนี้บริการ!$D24),\"\")","v":""}]
[{"$nulls":4},{"$f":"IF(SUM(B25)>0,SUM(B25*ใบแจ้งหนี้บริการ!$D25),\"\")","v":""}]
[{"$nulls":4},{"$f":"IF(SUM(B26)>0,SUM(B26*ใบแจ้งหนี้บริการ!$D26),\"\")","v":""}]
[{"$nulls":4},{"$f":"IF(SUM(B27)>0,SUM(B27*ใบแจ้งหนี้บริการ!$D27),\"\")","v":""}]
[{"$nulls":4},{"$f":"IF(SUM(B28)>0,SUM(B28*ใบแจ้งหนี้บริการ!$D28),\"\")","v":""}]
[{"$nulls":4},{"$f":"IF(SUM(B29)>0,SUM(B29*ใบแจ้งหนี้บริการ!$D29),\"\")","v":""}]
[{"$nulls":4},{"$f":"IF(SUM(B30)>0,SUM(B30*ใบแจ้งหนี้บริการ!$D30),\"\")","v":""}]
[{"$nulls":4},{"$f":"IF(SUM(B31)>0,SUM(B31*ใบแจ้งหนี้บริการ!$D31),\"\")","v":""}]
[{"$nulls":4},{"$f":"IF(SUM(B32)>0,SUM(B32*ใบแจ้งหนี้บริการ!$D32),\"\")","v":""}]
[{"$nulls":4},{"$f":"IF(SUM(B33)>0,SUM(B33*ใบแจ้งหนี้บริการ!$D33),\"\")","v":""}]
[{"$nulls":4},{"$f":"IF(SUM(B34)>0,SUM(B34*ใบแจ้งหนี้บริการ!$D34),\"\")","v":""}]
[{"$nulls":4},{"$f":"IF(SUM(B35)>0,SUM(B35*ใบแจ้งหนี้บริการ!$D35),\"\")","v":""}]
[{"$nulls":4},{"$f":"IF(SUM(B36)>0,SUM(B36*ใบแจ้งหนี้บริการ!$D36),\"\")","v":""}]
[{"$nulls":4},{"$f":"IF(SUM(B37)>0,SUM(B37*ใบแจ้งหนี้บริการ!$D37),\"\")","v":""}]
[{"$nulls":3},"ผลรวมย่อย",{"$f":"IF(SUM(E18:E37)>0,SUM(E18:E37),\"\")","v":""}]
[{"$nulls":3},"ภาษีขาย"]
[{"$nulls":3},"ผลรวม",{"$f":"IF(SUM(E38)>0,SUM((E38*E39)+E38),\"\")","v":""}]
[]
["ชื่อบริษัทจะถูกอัปเดตในเซลล์ D42 โดยอัตโนมัติ","สั่งจ่ายเช็คทั้งหมดให้กับ",null,{"$f":"B3","v":"ชื่อบริษัทของคุณ"}]
["ข้อความขอบคุณจะอยู่ในเซลล์ด้านขวา","ขอขอบคุณที่ร่วมทำธุรกิจกับเรา!"]